{"text_format":"1","workbook":"xlsx","n_sheets":4,"sheets":["Droit Civil","Droit Familial","Droit Criminel (horaire)","Droit Criminel (forfait)"],"not_rendered":{"charts":0,"images":0,"macros":1,"external_links":0,"defined_names":4,"comments":0,"pivot_tables":0},"unopened":[],"bounds":{"document_bytes":16777216,"sheet_cells":100000,"rows_first":2000,"rows_last":500,"rows_between":2000,"halvings":0,"cell_chars":16384,"cell_head_chars":4096},"cells_cut":0,"cells_raw":0,"read":"whole","date_system":"1900"}

{"sheet":"Droit Civil","index":0,"n_rows":30,"n_cols":9,"rows_kept":30,"cut":false,"hidden":false,"merged":[[29,1,29,8],[28,1,28,8],[0,0,0,8],[1,0,1,2],[3,6,3,7],[3,1,3,2]]}
["ESTIMATION DES COÛTS – DROIT CIVIL"]
["HONORAIRES :",null,null,0,null,null,null,"TOTAL DES COÛTS ESTIMÉS :",{"$f":"SUM(E5:E27)+IF(G5=TRUE,I5,0)+IF(G6=TRUE,I6,0)+IF(G7=TRUE,I7,0)+IF(G8=TRUE,I8,0)+IF(G9=TRUE,I9,0)+IF(G10=TRUE,I10,0)+IF(G11=TRUE,I11,0)+IF(G12=TRUE,I12,0)+IF(G13=TRUE,I13,0)+IF(G14=TRUE,I14,0)+IF(G15=TRUE,I15,0)+IF(G17=TRUE,I17,0)+IF(G18=TRUE,I18,0)+IF(G19=TRUE,I19,0)+IF(G20=TRUE,I20,0)+IF(G21=TRUE,I21,0)+IF(G22=TRUE,I22,0)+IF(G23=TRUE,I23,0)+IF(G24=TRUE,I24,0)+IF(G25=TRUE,I25,0)+IF(G26=TRUE,I26,0)","v":0}]
[]
[null,"Étapes prévisibles",null,"Durée estimée (en heures)","Coût estimé",null,"Débours",null,"Montant"]
[null,false,"Rencontre initiale",0,{"$f":"IF($B5=TRUE,$D$2*D5,)","v":0},null,false,"Photocopies",0]
[null,false,"Étude de la situation",0,{"$f":"IF($B6=TRUE,$D$2*D6,)","v":0},null,false,"Frais de gestion de dossier",0]
[null,false,"Mise en demeure",0,0,null,false,"Frais de déplacement, de repas et d’hôtel",0]
[null,false,"Gestion de la preuve",0,0,null,false,"Frais d’expertise",0]
[null,false,"Procédures",0,0,null,false,"Indemnités et allocations dues aux témoins",0]
[null,false,"Protocole de l'instance",0,0,null,false,"Frais pour les sténographes",0]
[null,false,"Moyens préliminaires",0,0,null,false,"Frais et honoraires de signification, de notification ou de transmission des actes de procédures et des documents",0]
[null,false,"Vacations à la Cour",0,0,null,false,"Frais de messagerie, de poste ou de transport de documents au coût réel",0]
[null,false,"Échanges avec la ou les partie(s) adverse(s)",0,0,null,false,"Droits et frais de greffe de la demande introductive d’instance",0]
[null,false,"Conférence de gestion",0,0,null,false,"Droits et frais de greffe de la réponse",0]
[null,false,"Gestion des expertises",0,{"$f":"IF($B15=TRUE,$D$2*D15,)","v":0},null,false,"Droits et frais de greffe de la demande d’inscription pour instruction et jugement",0]
[null,false,"Modes de prévention et de règlement des différends",0,0,null,null,"Autre(s) débours"]
[null,false,"Rédaction ou révision d’une entente de règlement à l’amiable",0,0,null,false,"Indiquez ici le nom"]
[null,false,"Interrogatoires",0,0,null,false,"Indiquez ici le nom",0]
[null,false,"Mise en état du dossier et l’inscription pour instruction et jugement",0,0,null,false,"Indiquez ici le nom",0]
[null,false,"Préparation des témoins",0,0,null,false,"Indiquez ici le nom",0]
[null,false,"Préparation à l’audition",0,0,null,false,"Indiquez ici le nom",0]
[null,false,"Recherches juridiques",0,{"$f":"IF($B22=TRUE,$D$2*D22,)","v":0},null,false,"Indiquez ici le nom",0]
[null,false,"Conférence préparatoire à l’instruction",0,0,null,false,"Indiquez ici le nom",0]
[null,false,"L’audition (nombre de jours)",0,0,null,false,"Indiquez ici le nom",0]
[null,false,"Jours supplémentaires d’audition (imprévus)",0,0,null,false,"Indiquez ici le nom",0]
[null,false,"Réception du jugement et son analyse",0,0,null,false,"Indiquez ici le nom",0]
[null,false,"Imprévus (exemples : si la partie n’est pas représentée par avocat, si la partie adverse change d’avocat, la non-collaboration de la partie adverse, les incidents de l’instance, les demandes en cours d’instance, etc.)",0,0]
[]
[null,"Note 1 : Il s'agit d'une estimation basée sur l'expérience de l'avocat en fonction des actions prévisibles au dossier du client."]
[null,"Note 2 : L'estimation concerne les travaux prévisibles pour l'exécution du mandat prévu à la convention d'honoraires."]

{"sheet":"Droit Familial","index":1,"n_rows":34,"n_cols":9,"rows_kept":34,"cut":false,"hidden":false,"merged":[[33,1,33,8],[0,0,0,8],[1,0,1,2],[3,1,3,2],[3,6,3,7],[32,1,32,8]]}
["ESTIMATION DES COÛTS – DROIT FAMILIAL"]
["HONORAIRES :",null,null,0,null,null,null,"TOTAL DES COÛTS ESTIMÉS :",{"$f":"SUM(E5:E31)+IF(G5=TRUE,I5,0)+IF(G6=TRUE,I6,0)+IF(G7=TRUE,I7,0)+IF(G8=TRUE,I8,0)+IF(G9=TRUE,I9,0)+IF(G10=TRUE,I10,0)+IF(G11=TRUE,I11,0)+IF(G12=TRUE,I12,0)+IF(G13=TRUE,I13,0)+IF(G14=TRUE,I14,0)+IF(G15=TRUE,I15,0)+IF(G17=TRUE,I17,0)+IF(G18=TRUE,I18,0)+IF(G19=TRUE,I19,0)+IF(G20=TRUE,I20,0)+IF(G21=TRUE,I21,0)+IF(G22=TRUE,I22,0)+IF(G23=TRUE,I23,0)+IF(G24=TRUE,I24,0)+IF(G25=TRUE,I25,0)+IF(G26=TRUE,I26,0)+IF(G27=TRUE,I27,0)+IF(G28=TRUE,I28,0)+IF(G29=TRUE,I29,0)+IF(G30=TRUE,I30,0)","v":0}]
[]
[null,"Étapes prévisibles",null,"Durée estimée (en heures)","Coût estimé",null,"Débours",null,"Montant"]
[null,false,"Rencontre initiale",0,{"$f":"IF($B5=TRUE,$D$2*D5,)","v":0},null,false,"Photocopies",0]
[null,false,"Étude de la situation",0,{"$f":"IF($B6=TRUE,$D$2*D6,)","v":0},null,false,"Frais de gestion de dossier",0]
[null,false,"Rédaction des procédures",0,0,null,false,"Frais de déplacement, de repas et d’hôtel",0]
[null,false,"Gestion de la preuve",0,0,null,false,"Frais d’expertise",0]
[null,false,"Échanges avec le client",0,0,null,false,"Indemnités et allocations dues aux témoins",0]
[null,false,"Échanges avec la ou les partie(s) adverse(s)",0,0,null,false,"Frais pour les sténographes",0]
[null,false,"Vacations à la Cour",0,0,null,false,"Frais et honoraires de signification, de notification ou de transmission des actes de procédures et des documents",0]
[null,false,"Recherches juridiques",0,{"$f":"IF($B12=TRUE,$D$2*D12,)","v":0},null,false,"Frais de messagerie, de poste ou de transport de documents au coût réel",0]
[null,false,"Préparation de l'audition ou rédaction d'une entente",0,0,null,false,"Droits et frais de greffe de la demande introductive d’instance",0]
[null,false,"Audition ou dépôt d'une entente",0,0,null,false,"Droits et frais de greffe de la réponse",0]
[null,true,"Demandes urgentes",null,null,null,false,"Droits et frais de greffe de la demande d’inscription pour instruction et jugement",0]
[null,false,"Ordonnance de sauvegarde",0,0,null,null,"Autre(s) débours"]
[null,true,"Demandes particulières",null,null,null,false,"Indiquez ici le nom",0]
[null,false,"Gestion de l'instance",0,0,null,false,"Indiquez ici le nom",0]
[null,false,"Conférence de règlement à l'amiable (CRA)",0,0,null,false,"Indiquez ici le nom",0]
[null,false,"Nomination d'un procureur à l'enfant",0,0,null,false,"Indiquez ici le nom",0]
[null,false,"Expertise psychosociale",0,0,null,false,"Indiquez ici le nom",0]
[null,true,"Divorce, union civile ou union parentale",null,null,null,false,"Indiquez ici le nom",0]
[null,false,"Protocole de l'instance",0,0,null,false,"Indiquez ici le nom",0]
[null,false,"Demandes préliminaires",0,0,null,false,"Indiquez ici le nom",0]
[null,false,"Mesures provisoires",0,0,null,false,"Indiquez ici le nom",0]
[null,false,"Expertises",0,0,null,false,"Indiquez ici le nom",0]
[null,false,"Interrogatoires",0,0,null,false,"Indiquez ici le nom",0]
[null,false,"Préparation des formulaires",0,0,null,false,"Indiquez ici le nom",0]
[null,false,"Inscription pour instruction et jugement",0,0,null,false,"Indiquez ici le nom",0]
[null,false,"Prolongation de délai",0,0,null,false,"Indiquez ici le nom",0]
[null,false,"Imprévus (exemples : si la partie n’est pas représentée par avocat, si la partie adverse change d’avocat, la non-collaboration de la partie adverse, les incidents de l’instance, les demandes en cours d’instance, etc.)",0,0]
[]
[null,"Note 1 : Il s'agit d'une estimation basée sur l'expérience de l'avocat en fonction des actions prévisibles au dossier du client."]
[null,"Note 2 : L'estimation concerne les travaux prévisibles pour l'exécution du mandat prévu à la convention d'honoraires."]

{"sheet":"Droit Criminel (horaire)","index":2,"n_rows":39,"n_cols":9,"rows_kept":39,"cut":false,"hidden":false,"merged":[[37,1,37,8],[38,1,38,8],[3,1,3,2],[3,6,3,7],[0,2,0,8]]}
[null,null,"ESTIMATION DES COÛTS – DROIT CRIMINEL (HORAIRE)"]
[null,null,"HONORAIRES :",0,null,null,null,"TOTAL DES COÛTS ESTIMÉS :",{"$f":"SUM(E5:E36)+IF(G5=TRUE,I5,0)+IF(G6=TRUE,I6,0)+IF(G7=TRUE,I7,0)+IF(G8=TRUE,I8,0)+IF(G9=TRUE,I9,0)+IF(G10=TRUE,I10,0)+IF(G11=TRUE,I11,0)+IF(G12=TRUE,I12,0)+IF(G13=TRUE,I13,0)+IF(G15=TRUE,I15,0)+IF(G16=TRUE,I16,0)+IF(G17=TRUE,I17,0)+IF(G18=TRUE,I18,0)+IF(G19=TRUE,I19,0)+IF(G20=TRUE,I20,0)+IF(G21=TRUE,I21,0)+IF(G22=TRUE,I22,0)+IF(G23=TRUE,I23,0)+IF(G24=TRUE,I24,0)+IF(G25=TRUE,I25,0)+IF(G26=TRUE,I26,0)+IF(G27=TRUE,I27,0)+IF(G28=TRUE,I28,0)","v":0}]
[]
[null,"Étapes prévisibles",null,"Durée estimée (en heures)","Coût estimé",null,null,null,"Montant"]
[null,false,"Entrevue initiale",0,{"$f":"IF($B5=TRUE,$D$2*D5,)","v":0},null,false,"Photocopies",0]
[null,false,"Comparution",0,0,null,false,"Frais de gestion de dossier",0]
[null,false,"Négociation des conditions de mise en liberté",0,0,null,false,"Frais de déplacement, de repas et d’hôtel",0]
[null,false,"Enquête sur mise en liberté",0,0,null,false,"Frais d’expertise",0]
[null,false,"Modification des conditions de mise en liberté",0,0,null,false,"Indemnités et allocations dues aux témoins",0]
[null,false,"Communication et analyse de la preuve",0,{"$f":"IF($B10=TRUE,$D$2*D10,)","v":0},null,false,"Frais pour les sténographes",0]
[null,false,"Demande de complément de preuve",0,0,null,false,"Frais et honoraires de signification, de notification ou de transmission des actes de procédures et des documents",0]
[null,false,"Rencontres avec le client et les témoins",0,0,null,false,"Frais de messagerie, de poste ou de transport de documents au coût réel",0]
[null,false,"Conférence de gestion",0,0,null,false,"Droits et frais de greffe",0]
[null,false,"Conférence de facilitation",0,0,null,null,"Autre(s) débours"]
[null,false,"Conférence préparatoire",0,0,null,false,"Indiquez ici le nom",0]
[null,false,"Requête préliminaire",0,{"$f":"IF($B16=TRUE,$D$2*D16,)","v":0},null,false,"Indiquez ici le nom",0]
[null,false,"Toute autre requête (examen de la détention préventive, exclusion de la preuve, arrêt des procédures, etc.)",0,{"$f":"IF($B17=TRUE,$D$2*D17,)","v":0},null,false,"Indiquez ici le nom",0]
[null,false,"Enquête préliminaire",0,0,null,false,"Indiquez ici le nom",0]
[null,false,"Vacations à la Cour (pro forma)",0,0,null,false,"Indiquez ici le nom",0]
[null,false,"Choix des membres du jury (si procès devant juge et jury)",0,0,null,false,"Indiquez ici le nom",0]
[null,false,"Recherches en droit",0,0,null,false,"Indiquez ici le nom",0]
[null,false,"Préparation des témoins",0,0,null,false,"Indiquez ici le nom",0]
[null,false,"Préparation du procès",0,0,null,false,"Indiquez ici le nom",0]
[null,false,"Procès",0,0,null,false,"Indiquez ici le nom",0]
[null,false,"Plaidoiries",0,0,null,false,"Indiquez ici le nom",0]
[null,false,"Détermination de la peine",0,0,null,false,"Indiquez ici le nom",0]
[null,true,"Imprévus en cours de mandat",null,null,null,false,"Indiquez ici le nom",0]
[null,false,"Report de l'audience (remises)",0,{"$f":"IF($B28=TRUE,$D$2*D28,)","v":0},null,false,"Indiquez ici le nom",0]
[null,false,"Encombrement du rôle",0,0]
[null,false,"Témoin absent",0,0]
[null,false,"Audition non terminée et devant être poursuivie à une autre date",0,0]
[null,false,"Écoute d'enregistrements audios des audiences",0,0]
[null,false,"Lecture des transcriptions sténographiques des audiences",0,0]
[null,false,"Plaidoiries écrites",0,0]
[null,false,"Réouverture d'enquête",0,0]
[null,false,"Toute autre procédure imprévue survenant durant le traitement du dossier",0,0]
[]
[null,"Note 1 : Il s'agit d'une estimation basée sur l'expérience de l'avocat en fonction des actions prévisibles au dossier du client."]
[null,"Note 2 : L'estimation concerne les travaux prévisibles pour l'exécution du mandat prévu à la convention d'honoraires."]

{"sheet":"Droit Criminel (forfait)","index":3,"n_rows":39,"n_cols":8,"rows_kept":39,"cut":false,"hidden":false,"merged":[[0,2,0,8],[3,1,3,2],[3,5,3,6],[37,1,37,8],[38,1,38,8]]}
[null,null,"ESTIMATION DES COÛTS – DROIT CRIMINEL (FORFAIT)"]
[null,null,"FORFAIT :",{"$f":"SUM(D5:D36)+SUM(H5:H13)+SUM(H15:H28)","v":0}]
[]
[null,"Étapes prévisibles",null,"Coût estimé",null,null,null,"Montant"]
[null,false,"Entrevue initiale",0,null,false,"Photocopies",0]
[null,false,"Comparution",0,null,false,"Frais de gestion de dossier",0]
[null,false,"Négociation des conditions de mise en liberté",0,null,false,"Frais de déplacement, de repas et d’hôtel",0]
[null,false,"Enquête sur mise en liberté",0,null,false,"Frais d’expertise",0]
[null,false,"Modification des conditions de mise en liberté",0,null,false,"Indemnités et allocations dues aux témoins",0]
[null,false,"Communication et analyse de la preuve",0,null,false,"Frais pour les sténographes",0]
[null,false,"Demande de complément de preuve",0,null,false,"Frais et honoraires de signification, de notification ou de transmission des actes de procédures et des documents",0]
[null,false,"Rencontres avec le client et les témoins",0,null,false,"Frais de messagerie, de poste ou de transport de documents au coût réel",0]
[null,false,"Conférence de gestion",0,null,false,"Droits et frais de greffe",0]
[null,false,"Conférence de facilitation",0,null,null,"Autre(s) débours"]
[null,false,"Conférence préparatoire",0,null,false,"Indiquez ici le nom",0]
[null,false,"Requête préliminaire",0,null,false,"Indiquez ici le nom",0]
[null,false,"Toute autre requête (examen de la détention préventive, exclusion de la preuve, arrêt des procédures, etc.)",0,null,false,"Indiquez ici le nom",0]
[null,false,"Enquête préliminaire",0,null,false,"Indiquez ici le nom",0]
[null,false,"Vacations à la Cour (pro forma)",0,null,false,"Indiquez ici le nom",0]
[null,false,"Choix des membres du jury (si procès devant juge et jury)",0,null,false,"Indiquez ici le nom",0]
[null,false,"Recherches en droit",0,null,false,"Indiquez ici le nom",0]
[null,false,"Préparation des témoins",0,null,false,"Indiquez ici le nom",0]
[null,false,"Préparation du procès",0,null,false,"Indiquez ici le nom",0]
[null,false,"Procès",0,null,false,"Indiquez ici le nom",0]
[null,false,"Plaidoiries",0,null,false,"Indiquez ici le nom",0]
[null,false,"Détermination de la peine",0,null,false,"Indiquez ici le nom",0]
[null,"VRAI+G5:J14","Imprévus en cours de mandat",null,null,false,"Indiquez ici le nom",0]
[null,false,"Report de l'audience (remises)",0,null,false,"Indiquez ici le nom",0]
[null,false,"Encombrement du rôle",0]
[null,false,"Témoin absent",0]
[null,false,"Audition non terminée et devant être poursuivie à une autre date",0]
[null,false,"Écoute d'enregistrements audios des audiences",0]
[null,false,"Lecture des transcriptions sténographiques des audiences",0]
[null,false,"Plaidoiries écrites",0]
[null,false,"Réouverture d'enquête",0]
[null,false,"Toute autre procédure imprévue survenant durant le traitement du dossier",0]
[]
[null,"Note 1 : Il s'agit d'une estimation basée sur l'expérience de l'avocat en fonction des actions prévisibles au dossier du client."]
[null,"Note 2 : L'estimation concerne les travaux prévisibles pour l'exécution du mandat prévu à la convention d'honoraires."]